[Event "*** SCC Grand Prix: Titled Tuesday Blitz"]
[Site "Chess.com"]
[Date "2020.07.21"]
[Round "4"]
[White "giantslayer83"]
[Black "ChessAurochs"]
[Result "1-0"]
[WhiteElo "2732"]
[BlackElo "2507"]
[TimeControl "180+1"]
[EndTime "10:38:46 PDT"]
[Termination "giantslayer83 won on time"]

1. d4 {[%clk 0:02:43.6]} 1... Nf6 {[%clk 0:02:56.1]} 2. Bg5 {[%clk 0:02:42.9]}
2... e6 {[%clk 0:02:51.6]} 3. Nd2 {[%clk 0:02:41.5]} 3... c5 {[%clk 0:02:32.3]}
4. e3 {[%clk 0:02:39.8]} 4... h6 {[%clk 0:02:28.8]} 5. Bh4 {[%clk 0:02:35.8]}
5... d5 {[%clk 0:02:28.1]} 6. Ngf3 {[%clk 0:02:34.4]} 6... Be7 {[%clk
0:02:20.2]} 7. c3 {[%clk 0:02:33]} 7... O-O {[%clk 0:02:18.6]} 8. Bd3 {[%clk
0:02:32.8]} 8... b6 {[%clk 0:02:18.9]} 9. Ne5 {[%clk 0:02:29.9]} 9... Bb7 {[%clk
0:02:09.1]} 10. f4 {[%clk 0:02:28.5]} 10... Ne4 {[%clk 0:02:08.4]} 11. Bxe7
{[%clk 0:02:27.8]} 11... Qxe7 {[%clk 0:02:09.3]} 12. O-O {[%clk 0:02:27.2]}
12... Nd7 {[%clk 0:01:58.4]} 13. Nxd7 {[%clk 0:01:57.6]} 13... Qxd7 {[%clk
0:01:59.3]} 14. Bxe4 {[%clk 0:01:57.7]} 14... dxe4 {[%clk 0:01:58.6]} 15. dxc5
{[%clk 0:01:58.1]} 15... Qd3 {[%clk 0:01:47.2]} 16. Qe1 {[%clk 0:01:36.6]} 16...
bxc5 {[%clk 0:01:41.2]} 17. Nb3 {[%clk 0:01:36.2]} 17... Qb5 {[%clk 0:01:26.3]}
18. f5 {[%clk 0:01:35.4]} 18... exf5 {[%clk 0:00:40.2]} 19. Rxf5 {[%clk
0:01:34]} 19... Rac8 {[%clk 0:00:40.7]} 20. Qg3 {[%clk 0:01:31.6]} 20... Qb6
{[%clk 0:00:40.2]} 21. Raf1 {[%clk 0:01:15.8]} 21... f6 {[%clk 0:00:20.6]} 22.
R1f2 {[%clk 0:00:47.9]} 22... Ba6 {[%clk 0:00:20.2]} 23. h3 {[%clk 0:00:44.3]}
23... Bd3 {[%clk 0:00:20.2]} 24. Kh2 {[%clk 0:00:43.3]} 24... a5 {[%clk
0:00:20.6]} 25. Nc1 {[%clk 0:00:31.9]} 25... a4 {[%clk 0:00:20.3]} 26. Ne2
{[%clk 0:00:28.4]} 26... Bxe2 {[%clk 0:00:16.6]} 27. Rxe2 {[%clk 0:00:29.3]}
27... Rcd8 {[%clk 0:00:13.7]} 28. Qf4 {[%clk 0:00:24.6]} 28... Qc6 {[%clk
0:00:12.3]} 29. Rf2 {[%clk 0:00:20.2]} 29... Rfe8 {[%clk 0:00:10.2]} 30. Qg4
{[%clk 0:00:19.5]} 30... Kh7 {[%clk 0:00:07.5]} 31. h4 {[%clk 0:00:18.3]} 31...
Rd5 {[%clk 0:00:07.5]} 32. h5 {[%clk 0:00:17.8]} 32... Ree5 {[%clk 0:00:03.1]}
33. Qg6+ {[%clk 0:00:14.9]} 33... Kh8 {[%clk 0:00:03.3]} 34. Rxe5 {[%clk
0:00:11]} 34... Rxe5 {[%clk 0:00:04.2]} 35. Rf5 {[%clk 0:00:11]} 35... Qe6
{[%clk 0:00:02.9]} 36. Rxe5 {[%clk 0:00:11.2]} 36... Qxe5+ {[%clk 0:00:03.8]}
37. Kh3 {[%clk 0:00:11.7]} 37... c4 {[%clk 0:00:02.6]} 38. g4 {[%clk 0:00:10.6]}
1-0

[Event "*** SCC Grand Prix: Titled Tuesday Blitz"]
[Site "Chess.com"]
[Date "2020.07.21"]
[Round "4"]
[White "MihailNik"]
[Black "MergenKakabaev"]
[Result "1/2-1/2"]
[WhiteElo "2666"]
[BlackElo "2489"]
[TimeControl "180+1"]
[EndTime "10:38:47 PDT"]
[Termination "Game drawn by repetition"]

1. e4 {[%clk 0:03:00.9]} 1... e5 {[%clk 0:02:59.9]} 2. Nf3 {[%clk 0:03:01.1]}
2... Nc6 {[%clk 0:02:59.8]} 3. Bb5 {[%clk 0:03:01.7]} 3... a6 {[%clk 0:02:59.6]}
4. Ba4 {[%clk 0:03:01.7]} 4... Nf6 {[%clk 0:02:59.4]} 5. O-O {[%clk 0:03:02.3]}
5... Be7 {[%clk 0:02:59.4]} 6. Re1 {[%clk 0:03:02.1]} 6... b5 {[%clk 0:02:59.5]}
7. Bb3 {[%clk 0:03:02.6]} 7... d6 {[%clk 0:03:00.1]} 8. c3 {[%clk 0:03:03.2]}
8... O-O {[%clk 0:03:00.1]} 9. h3 {[%clk 0:03:03.8]} 9... Na5 {[%clk 0:02:58.6]}
10. Bc2 {[%clk 0:03:04.3]} 10... c5 {[%clk 0:02:58.8]} 11. d3 {[%clk 0:03:05]}
11... Qc7 {[%clk 0:02:56.5]} 12. Nbd2 {[%clk 0:03:05.6]} 12... Bd7 {[%clk
0:02:56.1]} 13. Nf1 {[%clk 0:03:06.3]} 13... c4 {[%clk 0:02:55.4]} 14. d4 {[%clk
0:03:05.5]} 14... Nc6 {[%clk 0:02:54.2]} 15. Ng3 {[%clk 0:03:04.9]} 15... g6
{[%clk 0:02:53.6]} 16. Bh6 {[%clk 0:03:00.1]} 16... Rfb8 {[%clk 0:02:50.8]} 17.
d5 {[%clk 0:02:56.6]} 17... Nd8 {[%clk 0:02:50.2]} 18. Nh2 {[%clk 0:02:56]}
18... Ne8 {[%clk 0:02:49.7]} 19. f4 {[%clk 0:02:53.4]} 19... f6 {[%clk
0:02:48.8]} 20. f5 {[%clk 0:02:39.5]} 20... Nf7 {[%clk 0:02:30.3]} 21. Be3
{[%clk 0:02:38.4]} 21... Ng7 {[%clk 0:02:26.6]} 22. h4 {[%clk 0:02:31.7]} 22...
a5 {[%clk 0:01:35.7]} 23. Rf1 {[%clk 0:02:22]} 23... b4 {[%clk 0:01:29.7]} 24.
fxg6 {[%clk 0:02:21.5]} 24... hxg6 {[%clk 0:01:29.2]} 25. Ng4 {[%clk 0:02:22.1]}
25... Qd8 {[%clk 0:01:23.8]} 26. h5 {[%clk 0:02:14.7]} 26... g5 {[%clk
0:01:12.2]} 27. h6 {[%clk 0:02:14.3]} 27... Bxg4 {[%clk 0:01:11.3]} 28. Qxg4
{[%clk 0:02:07.9]} 28... Nxh6 {[%clk 0:01:10.1]} 29. Qh3 {[%clk 0:02:08]} 29...
Kh7 {[%clk 0:00:51]} 30. Bd1 {[%clk 0:01:51.6]} 30... Qc8 {[%clk 0:00:50.9]} 31.
Qh2 {[%clk 0:01:14.4]} 31... Kg6 {[%clk 0:00:50.7]} 32. Bh5+ {[%clk 0:00:29.5]}
32... Nxh5 {[%clk 0:00:44]} 33. Qxh5+ {[%clk 0:00:30.4]} 33... Kg7 {[%clk
0:00:43.8]} 34. Rf5 {[%clk 0:00:30.3]} 34... Qe8 {[%clk 0:00:38.1]} 35. Qh3
{[%clk 0:00:30.1]} 35... Qg6 {[%clk 0:00:35.4]} 36. Rf2 {[%clk 0:00:24.4]} 36...
bxc3 {[%clk 0:00:26.5]} 37. bxc3 {[%clk 0:00:24.9]} 37... Rb7 {[%clk 0:00:24.5]}
38. Raf1 {[%clk 0:00:24.8]} 38... Rf8 {[%clk 0:00:17.7]} 39. Qe6 {[%clk
0:00:15.3]} 39... Qf7 {[%clk 0:00:17]} 40. Qh3 {[%clk 0:00:09]} 40... Qg6 {[%clk
0:00:16.8]} 41. Qe6 {[%clk 0:00:06.2]} 41... Qf7 {[%clk 0:00:16.9]} 42. Qh3
{[%clk 0:00:06.4]} 42... Qg6 {[%clk 0:00:14.8]} 1/2-1/2

[Event "*** SCC Grand Prix: Titled Tuesday Blitz"]
[Site "Chess.com"]
[Date "2020.07.21"]
[Round "4"]
[White "Lagmantr"]
[Black "axvesik"]
[Result "0-1"]
[WhiteElo "2624"]
[BlackElo "2482"]
[TimeControl "180+1"]
[EndTime "10:38:47 PDT"]
[Termination "axvesik won by resignation"]

1. e4 {[%clk 0:03:00.9]} 1... e6 {[%clk 0:02:58.8]} 2. d4 {[%clk 0:02:59.3]}
2... d5 {[%clk 0:02:59.7]} 3. Nc3 {[%clk 0:03:00.2]} 3... Bb4 {[%clk 0:02:58.5]}
4. e5 {[%clk 0:03:00.1]} 4... Ne7 {[%clk 0:02:57.9]} 5. a3 {[%clk 0:03:00.2]}
5... Bxc3+ {[%clk 0:02:57.8]} 6. bxc3 {[%clk 0:03:01.1]} 6... c5 {[%clk
0:02:58]} 7. Qg4 {[%clk 0:03:01.4]} 7... cxd4 {[%clk 0:02:53.8]} 8. cxd4 {[%clk
0:03:00.3]} 8... Qc7 {[%clk 0:02:50.2]} 9. Bd2 {[%clk 0:02:52.2]} 9... Nbc6
{[%clk 0:02:29.7]} 10. c3 {[%clk 0:02:46.1]} 10... Nf5 {[%clk 0:02:27.6]} 11.
Bd3 {[%clk 0:02:42.7]} 11... Nce7 {[%clk 0:02:27.5]} 12. Ne2 {[%clk 0:02:39]}
12... Bd7 {[%clk 0:02:24.5]} 13. Ng3 {[%clk 0:02:23.2]} 13... O-O {[%clk
0:02:08.4]} 14. Nh5 {[%clk 0:02:15]} 14... Ng6 {[%clk 0:02:05.8]} 15. h4 {[%clk
0:02:08.8]} 15... f6 {[%clk 0:01:14.4]} 16. exf6 {[%clk 0:01:58.9]} 16... gxf6
{[%clk 0:01:14]} 17. Nf4 {[%clk 0:01:54]} 17... Kf7 {[%clk 0:01:09.1]} 18. Qh5
{[%clk 0:01:24.1]} 18... Rg8 {[%clk 0:00:41.4]} 19. g4 {[%clk 0:01:00.5]} 19...
Ne7 {[%clk 0:00:31.8]} 20. g5 {[%clk 0:00:50.1]} 20... f5 {[%clk 0:00:21.3]} 21.
Qxh7+ {[%clk 0:00:44.4]} 21... Rg7 {[%clk 0:00:20.6]} 22. Qh5 {[%clk 0:00:44.2]}
22... Rh8 {[%clk 0:00:18.5]} 23. Qf3 {[%clk 0:00:40.6]} 23... Nxh4 {[%clk
0:00:17.6]} 24. Qg3 {[%clk 0:00:38]} 24... Rgh7 {[%clk 0:00:17.6]} 25. Rxh4
{[%clk 0:00:19.6]} 25... Rxh4 {[%clk 0:00:16.9]} 26. g6+ {[%clk 0:00:11.7]}
26... Kg8 {[%clk 0:00:17]} 27. g7 {[%clk 0:00:12.6]} 27... R8h7 {[%clk
0:00:16.7]} 28. Nxd5 {[%clk 0:00:10.1]} 28... Qxg3 {[%clk 0:00:15.4]} 29. Nxe7+
{[%clk 0:00:09]} 29... Kxg7 {[%clk 0:00:15.9]} 30. fxg3 {[%clk 0:00:08.9]} 30...
Rh1+ {[%clk 0:00:16.1]} 31. Kf2 {[%clk 0:00:09]} 31... Bb5 {[%clk 0:00:16.8]}
32. Bf4 {[%clk 0:00:09.2]} 32... Rxa1 {[%clk 0:00:15.4]} 33. Bxb5 {[%clk
0:00:08.8]} 33... Kf7 {[%clk 0:00:15.4]} 34. Nc8 {[%clk 0:00:08.2]} 34... Rh2+
{[%clk 0:00:16]} 35. Kf3 {[%clk 0:00:07]} 35... Rc2 {[%clk 0:00:16.5]} 36. Nd6+
{[%clk 0:00:05.8]} 36... Ke7 {[%clk 0:00:16.7]} 37. Nxb7 {[%clk 0:00:04.4]}
37... Rxc3+ {[%clk 0:00:16.9]} 38. Be3 {[%clk 0:00:05.3]} 38... Raxa3 {[%clk
0:00:16.7]} 39. Nc5 {[%clk 0:00:04]} 39... Rxe3+ {[%clk 0:00:17.3]} 40. Kf4
{[%clk 0:00:04.9]} 40... Rxg3 {[%clk 0:00:17.7]} 41. Nd3 {[%clk 0:00:03.7]}
41... Raxd3 {[%clk 0:00:15.8]} 42. d5 {[%clk 0:00:04.6]} 42... Rgf3+ {[%clk
0:00:16.1]} 43. Ke5 {[%clk 0:00:04.2]} 43... Rd4 {[%clk 0:00:16.7]} 0-1

[Event "*** SCC Grand Prix: Titled Tuesday Blitz"]
[Site "Chess.com"]
[Date "2020.07.21"]
[Round "4"]
[White "Fischerev7"]
[Black "GelmanAlexander"]
[Result "1-0"]
[WhiteElo "2356"]
[BlackElo "2568"]
[TimeControl "180+1"]
[EndTime "10:38:48 PDT"]
[Termination "Fischerev7 won by resignation"]

1. e4 {[%clk 0:03:00.9]} 1... c5 {[%clk 0:02:59.8]} 2. Nf3 {[%clk 0:02:56.8]}
2... e6 {[%clk 0:03:00.3]} 3. d4 {[%clk 0:02:56.1]} 3... cxd4 {[%clk 0:03:00.7]}
4. Nxd4 {[%clk 0:02:56.4]} 4... a6 {[%clk 0:03:01.2]} 5. Nc3 {[%clk 0:02:53.7]}
5... b5 {[%clk 0:02:59.9]} 6. a3 {[%clk 0:02:53.5]} 6... Bb7 {[%clk 0:02:59]} 7.
Bd3 {[%clk 0:02:53.8]} 7... Qc7 {[%clk 0:02:53.9]} 8. O-O {[%clk 0:02:53.1]}
8... Nf6 {[%clk 0:02:51.5]} 9. Be3 {[%clk 0:02:50]} 9... h5 {[%clk 0:02:48.1]}
10. h3 {[%clk 0:02:33.9]} 10... Nc6 {[%clk 0:02:42.1]} 11. Nxc6 {[%clk
0:02:33.3]} 11... Bxc6 {[%clk 0:02:42.3]} 12. f4 {[%clk 0:02:31.7]} 12... d6
{[%clk 0:02:35.6]} 13. f5 {[%clk 0:02:27.5]} 13... e5 {[%clk 0:02:32.6]} 14. Qf3
{[%clk 0:02:18.2]} 14... Be7 {[%clk 0:02:25.5]} 15. Qf2 {[%clk 0:02:13.5]} 15...
Qb7 {[%clk 0:02:24.8]} 16. Rae1 {[%clk 0:02:00.9]} 16... h4 {[%clk 0:02:01.1]}
17. Bg5 {[%clk 0:01:51.9]} 17... Bd8 {[%clk 0:01:55]} 18. Kh2 {[%clk 0:01:41]}
18... Rh5 {[%clk 0:01:38.6]} 19. Bxf6 {[%clk 0:01:35.9]} 19... Bxf6 {[%clk
0:01:37.2]} 20. Nd5 {[%clk 0:01:36.2]} 20... Bxd5 {[%clk 0:01:34.3]} 21. exd5
{[%clk 0:01:37.1]} 21... Rg5 {[%clk 0:01:31.7]} 22. Be4 {[%clk 0:01:34.4]} 22...
Ke7 {[%clk 0:01:27.3]} 23. Re3 {[%clk 0:01:25.1]} 23... Rc8 {[%clk 0:01:24.9]}
24. b3 {[%clk 0:01:19]} 24... Qb6 {[%clk 0:01:20.6]} 25. Qd2 {[%clk 0:01:08.7]}
25... Qc5 {[%clk 0:01:15]} 26. Rff3 {[%clk 0:01:06.7]} 26... Qxa3 {[%clk
0:01:13]} 27. Rc3 {[%clk 0:01:03.8]} 27... Rxc3 {[%clk 0:00:59.6]} 28. Rxc3
{[%clk 0:00:54.4]} 28... Kd8 {[%clk 0:00:53.7]} 29. Qe3 {[%clk 0:00:49.2]} 29...
Qa5 {[%clk 0:00:49.4]} 30. b4 {[%clk 0:00:49.3]} 30... Qxb4 {[%clk 0:00:41]} 31.
Qb6+ {[%clk 0:00:49.1]} 31... Ke7 {[%clk 0:00:32]} 32. Qb7+ {[%clk 0:00:19.6]}
32... Ke8 {[%clk 0:00:24.4]} 33. Rc8+ {[%clk 0:00:18.1]} 33... Bd8 {[%clk
0:00:24.2]} 34. Qc7 {[%clk 0:00:12.8]} 34... Rxg2+ {[%clk 0:00:17.5]} 35. Bxg2
{[%clk 0:00:10.4]} 35... Qf4+ {[%clk 0:00:17.8]} 36. Kg1 {[%clk 0:00:09.6]}
36... Qc1+ {[%clk 0:00:17.1]} 37. Kf2 {[%clk 0:00:08.6]} 37... Qd2+ {[%clk
0:00:17.5]} 38. Kf1 {[%clk 0:00:08.5]} 38... Qd1+ {[%clk 0:00:17.7]} 39. Kf2
{[%clk 0:00:07.6]} 39... Qd2+ {[%clk 0:00:18.6]} 40. Kg1 {[%clk 0:00:07.9]}
40... Qe1+ {[%clk 0:00:17.7]} 41. Bf1 {[%clk 0:00:07.3]} 41... Qg3+ {[%clk
0:00:17.6]} 42. Kh1 {[%clk 0:00:07.5]} 42... Qf3+ {[%clk 0:00:16.9]} 43. Bg2
{[%clk 0:00:07.8]} 43... Qd1+ {[%clk 0:00:13.9]} 44. Kh2 {[%clk 0:00:07.9]} 1-0

[Event "*** SCC Grand Prix: Titled Tuesday Blitz"]
[Site "Chess.com"]
[Date "2020.07.21"]
[Round "4"]
[White "Zenzo"]
[Black "eljanov"]
[Result "1-0"]
[WhiteElo "2554"]
[BlackElo "2843"]
[TimeControl "180+1"]
[EndTime "10:38:49 PDT"]
[Termination "Zenzo won on time"]

1. e4 {[%clk 0:03:00.9]} 1... c6 {[%clk 0:02:56.2]} 2. d4 {[%clk 0:03:00.5]}
2... d5 {[%clk 0:02:56]} 3. Nc3 {[%clk 0:03:01.1]} 3... dxe4 {[%clk 0:02:55.3]}
4. Nxe4 {[%clk 0:03:02]} 4... Bf5 {[%clk 0:02:54.7]} 5. Ng3 {[%clk 0:03:02.3]}
5... Bg6 {[%clk 0:02:54.8]} 6. Bc4 {[%clk 0:03:02.8]} 6... Nf6 {[%clk
0:02:46.6]} 7. N1e2 {[%clk 0:03:02.4]} 7... Nbd7 {[%clk 0:02:44.9]} 8. h4 {[%clk
0:03:01.3]} 8... h6 {[%clk 0:02:37.3]} 9. Nf4 {[%clk 0:02:58.1]} 9... Bh7 {[%clk
0:02:37.6]} 10. Bb3 {[%clk 0:02:57.2]} 10... e6 {[%clk 0:02:35.8]} 11. Qe2
{[%clk 0:02:49.7]} 11... Bd6 {[%clk 0:02:31.5]} 12. Bd2 {[%clk 0:02:01.3]} 12...
Qc7 {[%clk 0:02:23.4]} 13. Ngh5 {[%clk 0:01:37.7]} 13... O-O-O {[%clk
0:02:16.7]} 14. Nxe6 {[%clk 0:01:08.1]} 14... fxe6 {[%clk 0:02:13.1]} 15. Nxg7
{[%clk 0:01:08.6]} 15... Bg8 {[%clk 0:01:24]} 16. Bxe6 {[%clk 0:00:47.8]} 16...
Nd5 {[%clk 0:01:16.5]} 17. O-O-O {[%clk 0:00:38.4]} 17... Nf4 {[%clk 0:01:06.6]}
18. Bxf4 {[%clk 0:00:38.2]} 18... Bxf4+ {[%clk 0:01:06.5]} 19. Kb1 {[%clk
0:00:39.1]} 19... Bd6 {[%clk 0:00:46]} 20. Qg4 {[%clk 0:00:38.7]} 20... Kb8
{[%clk 0:00:43]} 21. Rhe1 {[%clk 0:00:30.3]} 21... Nf6 {[%clk 0:00:42.2]} 22.
Qg6 {[%clk 0:00:30.3]} 22... Nd5 {[%clk 0:00:41.9]} 23. Ne8 {[%clk 0:00:27.3]}
23... Qh7 {[%clk 0:00:35.3]} 24. Qh5 {[%clk 0:00:14.7]} 24... Bxe6 {[%clk
0:00:30.6]} 25. Rxe6 {[%clk 0:00:14.8]} 25... Nf4 {[%clk 0:00:31.1]} 26. Rxd6
{[%clk 0:00:13.6]} 26... Rdxe8 {[%clk 0:00:19.1]} 27. Qf3 {[%clk 0:00:08.8]}
27... Qe7 {[%clk 0:00:16.8]} 28. Qxf4 {[%clk 0:00:04.7]} 28... Ka8 {[%clk
0:00:16.4]} 29. Rf6 {[%clk 0:00:04.6]} 29... Rhg8 {[%clk 0:00:13.7]} 30. g3
{[%clk 0:00:04.3]} 30... Qe2 {[%clk 0:00:11.9]} 31. Qc1 {[%clk 0:00:04.5]} 31...
Rgf8 {[%clk 0:00:09.3]} 32. Rxf8 {[%clk 0:00:04.5]} 32... Rxf8 {[%clk
0:00:10.2]} 33. Rf1 {[%clk 0:00:03.8]} 33... h5 {[%clk 0:00:09.4]} 34. b3 {[%clk
0:00:03]} 34... a5 {[%clk 0:00:03.3]} 35. Qe1 {[%clk 0:00:03.1]} 35... Qf3
{[%clk 0:00:01.5]} 36. Qd1 {[%clk 0:00:02.3]} 36... Qd5 {[%clk 0:00:01.2]} 37.
f4 {[%clk 0:00:02.2]} 37... a4 {[%clk 0:00:01]} 38. Re1 {[%clk 0:00:03.1]} 1-0

[Event "*** SCC Grand Prix: Titled Tuesday Blitz"]
[Site "Chess.com"]
[Date "2020.07.21"]
[Round "4"]
[White "Smile2005"]
[Black "Matols"]
[Result "0-1"]
[WhiteElo "2394"]
[BlackElo "2209"]
[TimeControl "180+1"]
[EndTime "10:38:49 PDT"]
[Termination "Matols won on time"]

1. Nf3 {[%clk 0:03:00.7]} 1... Nf6 {[%clk 0:02:58.9]} 2. g3 {[%clk 0:03:01.6]}
2... e6 {[%clk 0:02:57.5]} 3. Bg2 {[%clk 0:03:01.9]} 3... d5 {[%clk 0:02:57.2]}
4. O-O {[%clk 0:03:02.8]} 4... c5 {[%clk 0:02:55.8]} 5. d3 {[%clk 0:03:03.7]}
5... Nc6 {[%clk 0:02:55.9]} 6. Nbd2 {[%clk 0:03:04.6]} 6... g6 {[%clk
0:02:55.1]} 7. e4 {[%clk 0:03:05.5]} 7... Bg7 {[%clk 0:02:54.7]} 8. exd5 {[%clk
0:03:05.9]} 8... Nxd5 {[%clk 0:02:53.8]} 9. Nb3 {[%clk 0:03:06.2]} 9... b6
{[%clk 0:02:51.4]} 10. Nfd2 {[%clk 0:03:03.3]} 10... O-O {[%clk 0:02:49.2]} 11.
c4 {[%clk 0:03:01.5]} 11... Nde7 {[%clk 0:02:48.1]} 12. Ne4 {[%clk 0:02:56.9]}
12... Bb7 {[%clk 0:02:46.9]} 13. Bg5 {[%clk 0:02:23.4]} 13... f6 {[%clk
0:02:44.2]} 14. Be3 {[%clk 0:02:14.6]} 14... Qd7 {[%clk 0:02:37.3]} 15. Nexc5
{[%clk 0:01:43.7]} 15... bxc5 {[%clk 0:02:32.8]} 16. Nxc5 {[%clk 0:01:44.6]}
16... Qc8 {[%clk 0:02:31.1]} 17. b4 {[%clk 0:01:44.7]} 17... Rd8 {[%clk
0:02:07.9]} 18. Nxb7 {[%clk 0:01:35.6]} 18... Qxb7 {[%clk 0:02:07.1]} 19. b5
{[%clk 0:01:35.1]} 19... Rac8 {[%clk 0:01:56]} 20. Qb3 {[%clk 0:01:25.5]} 20...
Qc7 {[%clk 0:01:28.6]} 21. bxc6 {[%clk 0:01:24.7]} 21... Nxc6 {[%clk 0:01:28.2]}
22. c5 {[%clk 0:01:20]} 22... Kf7 {[%clk 0:01:23.9]} 23. Rab1 {[%clk 0:01:07.4]}
23... Nd4 {[%clk 0:01:22.6]} 24. Bxd4 {[%clk 0:00:54.8]} 24... Rxd4 {[%clk
0:01:21.8]} 25. Qa3 {[%clk 0:00:35.3]} 25... Qxc5 {[%clk 0:01:10.7]} 26. Rb7+
{[%clk 0:00:34.6]} 26... Kg8 {[%clk 0:01:08.9]} 27. Qa6 {[%clk 0:00:30.6]} 27...
Rd6 {[%clk 0:00:59]} 28. Qa4 {[%clk 0:00:21.7]} 28... Rxd3 {[%clk 0:00:51.1]}
29. Rxa7 {[%clk 0:00:20.9]} 29... f5 {[%clk 0:00:47.9]} 30. Rb1 {[%clk 0:00:15]}
30... Rd2 {[%clk 0:00:41.2]} 31. Rf1 {[%clk 0:00:02.8]} 31... Bd4 {[%clk
0:00:40.7]} 32. Ra8 {[%clk 0:00:01.4]} 32... Bxf2+ {[%clk 0:00:35.6]} 33. Kh1
{[%clk 0:00:01.7]} 33... Be3 {[%clk 0:00:32]} 34. Rxc8+ {[%clk 0:00:01.1]} 34...
Qxc8 {[%clk 0:00:31.8]} 35. Qb3 {[%clk 0:00:01.2]} 35... Bd4 {[%clk 0:00:23.5]}
36. g4 {[%clk 0:00:01.2]} 36... Kg7 {[%clk 0:00:21.6]} 37. gxf5 {[%clk
0:00:01.5]} 37... exf5 {[%clk 0:00:19.7]} 38. a4 {[%clk 0:00:01.5]} 38... Qc7
{[%clk 0:00:18.6]} 0-1

[Event "*** SCC Grand Prix: Titled Tuesday Blitz"]
[Site "Chess.com"]
[Date "2020.07.21"]
[Round "4"]
[White "Witik"]
[Black "MacDaddyMac"]
[Result "1-0"]
[WhiteElo "2604"]
[BlackElo "2384"]
[TimeControl "180+1"]
[EndTime "10:38:50 PDT"]
[Termination "Witik won by checkmate"]

1. d4 {[%clk 0:03:00.9]} 1... Nf6 {[%clk 0:02:59.4]} 2. Bf4 {[%clk 0:02:59.6]}
2... e6 {[%clk 0:02:59.6]} 3. e3 {[%clk 0:02:59.3]} 3... c5 {[%clk 0:03:00.1]}
4. c3 {[%clk 0:02:57.2]} 4... Nc6 {[%clk 0:03:00.6]} 5. Nd2 {[%clk 0:02:57.4]}
5... d5 {[%clk 0:02:58.3]} 6. Bd3 {[%clk 0:02:55.4]} 6... b6 {[%clk 0:02:58.7]}
7. Rc1 {[%clk 0:02:52.1]} 7... Bb7 {[%clk 0:02:58.7]} 8. Ngf3 {[%clk 0:02:49.6]}
8... h6 {[%clk 0:02:51.5]} 9. Ne5 {[%clk 0:02:47.4]} 9... Nxe5 {[%clk
0:02:50.1]} 10. dxe5 {[%clk 0:02:46.2]} 10... Nd7 {[%clk 0:02:46.6]} 11. Qh5
{[%clk 0:02:35.5]} 11... c4 {[%clk 0:02:29.4]} 12. Bb1 {[%clk 0:02:33.1]} 12...
Nc5 {[%clk 0:02:29.8]} 13. Nf3 {[%clk 0:02:24.5]} 13... Nd3+ {[%clk 0:02:23.8]}
14. Bxd3 {[%clk 0:02:23]} 14... cxd3 {[%clk 0:02:24.7]} 15. Nd4 {[%clk
0:02:21.4]} 15... Ba6 {[%clk 0:02:14.9]} 16. Nxe6 {[%clk 0:02:17.5]} 16... Qd7
{[%clk 0:02:01.2]} 17. Nd4 {[%clk 0:02:12.5]} 17... g6 {[%clk 0:01:53]} 18. Qd1
{[%clk 0:02:04.3]} 18... Bc5 {[%clk 0:01:42.9]} 19. O-O {[%clk 0:01:51]} 19...
Bxd4 {[%clk 0:01:35.4]} 20. exd4 {[%clk 0:01:45.8]} 20... Qf5 {[%clk 0:01:16.1]}
21. Bd2 {[%clk 0:01:32.9]} 21... Qd7 {[%clk 0:01:13.8]} 22. Qf3 {[%clk
0:01:30.5]} 22... Rc8 {[%clk 0:01:10.9]} 23. e6 {[%clk 0:01:24.2]} 23... fxe6
{[%clk 0:01:11]} 24. Qf6 {[%clk 0:01:23.6]} 24... Rg8 {[%clk 0:01:07.9]} 25.
Rfe1 {[%clk 0:01:20.8]} 25... Rc6 {[%clk 0:01:07.9]} 26. Bxh6 {[%clk 0:01:20]}
26... Qf7 {[%clk 0:01:07.7]} 27. Qe5 {[%clk 0:01:16]} 27... Kd7 {[%clk
0:00:55.2]} 28. Rcd1 {[%clk 0:00:55.2]} 28... Qf5 {[%clk 0:00:42.8]} 29. h4
{[%clk 0:00:40.9]} 29... Qxe5 {[%clk 0:00:26.8]} 30. Rxe5 {[%clk 0:00:40.9]}
30... Bc4 {[%clk 0:00:25.9]} 31. a3 {[%clk 0:00:39.1]} 31... a5 {[%clk
0:00:20.2]} 32. f3 {[%clk 0:00:38.5]} 32... a4 {[%clk 0:00:20.2]} 33. Kf2 {[%clk
0:00:38.5]} 33... Ke8 {[%clk 0:00:19.9]} 34. Ke3 {[%clk 0:00:38.5]} 34... Kf7
{[%clk 0:00:20.3]} 35. Kd2 {[%clk 0:00:37.6]} 35... Bb3 {[%clk 0:00:16.8]} 36.
Rh1 {[%clk 0:00:36.8]} 36... Bc2 {[%clk 0:00:16.7]} 37. Rh3 {[%clk 0:00:35.9]}
37... Rcc8 {[%clk 0:00:16]} 38. Rg3 {[%clk 0:00:36.1]} 38... Rh8 {[%clk
0:00:13.3]} 39. Bg5 {[%clk 0:00:35.7]} 39... Rcg8 {[%clk 0:00:13.2]} 40. Rg4
{[%clk 0:00:36.1]} 40... Rh5 {[%clk 0:00:11.4]} 41. Rf4+ {[%clk 0:00:36.3]}
41... Kg7 {[%clk 0:00:10.5]} 42. Rxe6 {[%clk 0:00:36.4]} 42... Kh7 {[%clk
0:00:10.8]} 43. Rf7+ {[%clk 0:00:30.2]} 43... Rg7 {[%clk 0:00:10.8]} 44. Rf8
{[%clk 0:00:30.7]} 44... Rd7 {[%clk 0:00:04.9]} 45. Bf6 {[%clk 0:00:25.6]} 45...
g5 {[%clk 0:00:05.2]} 46. Be5 {[%clk 0:00:15.9]} 46... Rxh4 {[%clk 0:00:03.4]}
47. Rh8# {[%clk 0:00:14.7]} 1-0